bitfinex/quotes_BTCUSD_20220304
["timestamp","ask_amount","ask_price","bid_price","bid_amount"]
[1646382775198,0.01,41039.0,41023.0,0.01217]
[1646382775399,0.01,41039.0,41023.0,0.05]
[1646382775598,0.01,41039.0,41027.0,0.2187445]
[1646382775797,0.07097487,41039.0,41027.0,0.2187445]
[1646382775997,0.07097487,41039.0,41029.0,0.19213735]
[1646382776200,0.01,41039.0,41029.0,0.19213735]
[1646382776601,0.01217,41046.0,41035.0,0.16416353]
[1646382776602,0.01218,41046.0,41035.0,0.16416353]
[1646382776868,8.314e-05,41038.0,41030.0,0.3]
[1646382777349,8.314e-05,41038.0,41027.0,0.01217]
[1646382777550,8.314e-05,41038.0,41025.0,0.102057]
[1646382777551,8.314e-05,41038.0,41026.0,0.01217]
[1646382777752,8.314e-05,41038.0,41022.0,0.121919]
[1646382777950,0.3116504,41045.0,41030.0,0.19935331]
[1646382778150,0.06096575,41045.0,41023.0,0.3]
[1646382778351,0.06096575,41045.0,41030.0,0.2307492]
[1646382779049,0.06096575,41045.0,41032.0,0.18798171]
[1646382779449,0.06096575,41045.0,41030.0,0.05]
[1646382779653,0.31289753,41050.0,41023.0,0.3]
[1646382779654,0.15,41041.0,41023.0,0.01217]
[1646382779861,0.15,41041.0,41018.0,0.01217]
[1646382779862,0.15,41032.0,41018.0,0.01217]
[1646382780053,0.15,41032.0,41000.0,0.76813387]
[1646382780054,0.667309,41031.0,41000.0,0.76813387]
[1646382780252,0.667309,41031.0,41008.0,0.07344411]
[1646382780253,0.3,41031.0,41008.0,0.07344411]
[1646382780514,0.01328022,41042.0,41000.0,0.669882]
[1646382780515,0.3,41035.0,41019.0,0.22527557]
[1646382780710,0.31217,41043.0,41019.0,0.22527557]
[1646382780911,0.15,41041.0,41019.0,0.22527557]
[1646382781111,0.31217,41040.0,41019.0,0.22527557]
[1646382781514,0.15,41036.0,41019.0,0.22527557]
[1646382781710,0.01217,41037.0,41019.0,0.24217557]
[1646382782114,0.01217,41037.0,41020.0,0.3]
[1646382782313,0.01217,41043.0,41030.0,0.21821126]
[1646382782512,0.01217,41043.0,41021.0,0.01217]
[1646382782513,0.13642251,41028.0,41021.0,0.01217]
[1646382782811,0.13642251,41028.0,41025.0,0.06092576]
[1646382783010,0.13642251,41028.0,41026.0,0.19518936]
[1646382783210,0.13642251,41028.0,41027.0,0.20403008]
[1646382783613,0.3,41043.0,41040.0,0.17081322]
[1646382783813,0.0609645,41046.0,41027.0,0.21620008]
[1646382784010,0.0609645,41046.0,41035.0,0.06753504]
[1646382784261,0.121929,41050.0,41042.0,0.05978397]
[1646382784462,0.2376,41062.0,41027.0,0.21620008]
[1646382784463,0.01217,41054.0,41036.0,0.060946]
[1646382784658,0.01217,41056.0,41036.0,0.060946]
[1646382784858,0.01217,41056.0,41049.0,0.21773997]
[1646382785058,0.7632,41057.0,41033.0,0.171887]
[1646382785059,0.43547994,41048.0,41033.0,0.171887]
[1646382785258,0.3,41047.0,41033.0,0.05]
[1646382785457,0.3,41047.0,41034.0,0.05325784]
[1646382785656,0.3,41047.0,41022.0,0.1]
[1646382785657,0.3,41047.0,41032.0,0.02415]
[1646382785856,0.3,41047.0,41032.0,0.07415]
[1646382786059,0.43547994,41048.0,41032.0,0.07415]
[1646382786060,0.43547994,41048.0,41044.0,0.16885393]
[1646382786257,0.43547994,41048.0,41032.0,0.02415]
[1646382786258,0.43547994,41048.0,41032.0,0.3]
[1646382786657,0.43547994,41048.0,41040.0,0.21663464]
[1646382786858,0.43547994,41048.0,41036.0,0.060946]
[1646382787061,0.43547994,41048.0,41037.0,0.086376]
[1646382787258,0.63527994,41048.0,41046.0,0.19329602]
[1646382787661,0.63527994,41048.0,41038.0,0.3]
[1646382787861,0.63527994,41048.0,41033.0,0.121889]
[1646382788097,0.43547994,41048.0,41034.0,0.01217]
[1646382788291,0.1998,41047.0,41034.0,0.01217]
[1646382788492,0.1998,41047.0,41034.0,0.01178451]
[1646382788692,0.43547994,41048.0,41038.0,0.21353077]
[1646382788892,0.43547994,41048.0,41038.0,0.3962144]
[1646382789091,0.43547994,41048.0,41038.0,0.4462144]
[1646382789092,0.1998,41045.0,41038.0,0.4462144]
[1646382789494,0.1998,41045.0,41038.0,0.26353077]
[1646382790294,0.1998,41045.0,41039.0,0.21967676]
[1646382790493,0.1998,41045.0,41039.0,0.39825709]
[1646382790694,0.43547994,41048.0,41044.0,0.06072191]
[1646382790894,0.43547994,41048.0,41040.0,0.44602]
[1646382790895,0.43547994,41048.0,41046.0,0.19313085]
[1646382791093,0.43547994,41048.0,41047.0,0.21879752]
[1646382791295,0.43547994,41048.0,41047.0,0.26879752]
[1646382791494,0.43547994,41048.0,41046.0,0.19313085]
[1646382791742,0.43547994,41048.0,41046.0,0.24313085]
[1646382791939,0.43547994,41048.0,41046.0,0.30820563]
[1646382792139,0.43547994,41048.0,41046.0,0.33235563]
[1646382792344,0.42547994,41048.0,41046.0,0.33235563]
[1646382792541,0.42547994,41048.0,41047.0,0.32415]
[1646382792741,0.42547994,41048.0,41047.0,0.23627357]
[1646382792941,9.0,41058.0,41049.0,0.02415]
[1646382793144,3.15973169,41058.0,41052.0,0.02415]
[1646382793345,3.15973169,41058.0,41054.0,0.02415]
[1646382793544,3.15673169,41058.0,41053.0,0.16104481]
[1646382793745,3.15673169,41058.0,41052.0,0.01217]
[1646382793746,0.3,41057.0,41052.0,0.01217]
[1646382793946,0.3,41057.0,41034.0,0.0411]
[1646382793947,0.15,41053.0,41034.0,0.0411]
[1646382794145,0.06094963,41051.0,41013.0,0.15]
[1646382794344,0.02415,41048.0,41021.0,0.3]
[1646382794546,0.01217,41050.0,41022.0,0.121919]
[1646382794743,0.01217,41054.0,41034.0,0.18334365]
[1646382794947,0.01217,41054.0,41035.0,0.3]
[1646382795147,0.01217,41054.0,41034.0,0.3]
[1646382795344,0.1999,41044.0,41023.0,0.31217]
[1646382795595,0.24736923,41040.0,41027.0,0.02415]
[1646382795794,0.24736923,41040.0,41028.0,0.01217]
[1646382795998,0.24736923,41040.0,41020.0,0.31217]
[1646382796299,0.24736923,41040.0,41019.0,0.060962]
[1646382796300,0.02415,41036.0,41019.0,0.01217]
[1646382796496,0.02415,41034.0,41005.0,0.47687]
[1646382796694,0.06098184,41031.0,41021.0,0.15892858]
[1646382796895,0.06098184,41031.0,41009.0,0.32415]
[1646382797294,0.06098184,41031.0,41021.0,0.21861466]
[1646382797597,0.06098184,41031.0,41010.0,0.02415]
[1646382797598,0.1998,41029.0,41010.0,0.02415]
[1646382797794,0.06098184,41031.0,41010.0,0.02415]
[1646382797995,0.1998,41024.0,41009.0,0.3]
[1646382798193,0.1998,41024.0,41008.0,0.060983]
[1646382798395,0.06098184,41031.0,41010.0,0.06938705]
[1646382798597,0.01217,41032.0,41005.0,0.01218]
[1646382798598,0.1998,41029.0,41005.0,0.01218]
[1646382798797,0.1998,41029.0,41004.0,0.001]
[1646382798798,0.18409103,41015.0,41004.0,0.17136774]
[1646382798996,0.691459,41014.0,41004.0,0.001]
[1646382799245,0.691459,41014.0,40996.0,0.001]
[1646382799246,0.75845,41013.0,40996.0,0.001]
[1646382799446,0.01218,41012.0,40996.0,0.001]
[1646382799646,0.17415,41010.0,40996.0,0.001]
[1646382799848,0.02415,41005.0,40996.0,0.001]
[1646382800650,0.25355279,41004.0,40996.0,0.001]
[1646382800846,0.02415,41005.0,40996.0,0.001]
[1646382801046,0.31218,41006.0,40996.0,0.001]
[1646382801047,0.01218,41006.0,40996.0,0.001]
[1646382801647,0.03633,41006.0,40996.0,0.001]
[1646382802047,0.77063,41006.0,40996.0,0.001]
[1646382802248,0.03633,41006.0,40996.0,0.001]
[1646382802449,0.01218,41006.0,40996.0,0.001]
[1646382802649,0.20508471,41000.0,40996.0,0.001]
[1646382802847,0.02415,41006.0,40996.0,0.001]
[1646382803312,0.06102895,41007.0,40999.0,0.07448421]
[1646382803511,0.06102895,41007.0,40996.0,0.16017429]
[1646382803711,0.06102895,41007.0,40996.0,0.21017429]
[1646382803911,0.25845173,41003.0,40996.0,0.21017429]
[1646382804110,0.36102895,41007.0,40996.0,0.21017429]
[1646382804310,0.06102895,41007.0,41000.0,0.16933015]
[1646382804514,0.06102895,41007.0,40996.0,0.21017429]
[1646382804910,0.36102895,41007.0,40996.0,0.21017429]
[1646382805112,0.06102895,41007.0,40996.0,0.21017429]
[1646382805811,0.3,41011.0,41000.0,0.0709]
[1646382806212,0.391459,41009.0,41000.0,0.0709]
[1646382806412,0.32415,41008.0,41000.0,0.0709]
[1646382806611,0.07318569,41012.0,41000.0,0.0709]
[1646382806612,0.12204372,41006.0,41000.0,0.0709]
[1646382806846,0.0610178,41005.0,41000.0,0.0709]
[1646382807047,0.56571101,41004.0,41000.0,0.0709]
[1646382807745,0.26571101,41004.0,41000.0,0.0709]
[1646382807949,0.18139095,41009.0,41000.0,0.0709]
[1646382807950,0.3,41016.0,41000.0,0.1209]
[1646382808146,0.22795432,41019.0,41003.0,0.06655827]
[1646382808346,0.18305432,41019.0,41009.0,0.21163507]
[1646382809147,0.06100073,41018.0,41009.0,0.21163507]
[1646382809953,0.25282268,41013.0,41009.0,0.21163507]
[1646382810150,0.06100651,41011.0,41001.0,0.01218]
[1646382810596,0.3,41018.0,41001.0,0.01218]
[1646382810790,0.3,41018.0,41001.0,0.07967028]
[1646382811090,0.3,41018.0,41011.0,0.16349892]
[1646382811290,0.3,41018.0,41000.0,0.1209]
[1646382811291,0.02415,41014.0,41000.0,0.1209]
[1646382811492,0.32415,41014.0,41000.0,0.1209]
[1646382811797,0.02415,41012.0,41000.0,0.0709]
[1646382811990,0.16414636,41008.0,40996.0,0.0405]
[1646382812192,0.75845,41004.0,40996.0,0.0305]
[1646382812391,0.7343,41002.0,40996.0,0.0155]
[1646382812590,0.7343,41002.0,40991.0,0.01]
[1646382812591,0.75845,41000.0,40991.0,0.01]
[1646382812797,0.7343,40998.0,40991.0,0.01]
[1646382812993,0.7343,40998.0,40985.0,0.001]
[1646382812994,0.75845,40996.0,40985.0,0.001]
[1646382813195,0.02499999,40989.0,40985.0,0.001]
[1646382813795,0.20651467,40986.0,40985.0,0.001]
[1646382814466,0.34651103,40986.0,40985.0,0.001]
[1646382814667,0.13999636,40986.0,40985.0,0.001]
[1646382814867,0.06104224,40988.0,40985.0,0.001]
[1646382815468,0.06104224,40988.0,40985.0,0.000338]
[1646382815771,0.308624,40988.0,40985.0,0.000338]
[1646382816168,0.06104224,40988.0,40985.0,0.000338]
[1646382816370,0.24000001,40987.0,40985.0,0.000338]
[1646382818414,0.02499999,40989.0,40986.0,0.18639441]
[1646382818608,0.02499999,40989.0,40986.0,0.33639441]
[1646382818807,0.02499999,40989.0,40987.0,0.20080385]
[1646382821111,0.02499999,40989.0,40987.0,0.25928638]
[1646382821515,0.05,41000.0,40999.0,0.21286042]
[1646382821758,0.01218,41002.0,40999.0,0.21286042]
[1646382821957,0.01218,41007.0,40988.0,1.4949]
[1646382822161,0.02415,41003.0,40993.0,0.20912176]
[1646382822361,0.01218,41008.0,40990.0,0.22274413]
[1646382822559,0.01218,41008.0,40991.0,0.0449]
[1646382822758,0.03633,41008.0,40993.0,1.80529117]
[1646382822958,0.03633,41008.0,40998.0,0.17025073]
[1646382823157,0.02415,41008.0,40998.0,0.17025073]
[1646382823357,0.05,41011.0,40998.0,0.17025073]
[1646382823358,0.01218,41011.0,41002.0,0.15811367]
[1646382823562,0.24473781,41007.0,40998.0,0.17025073]
[1646382823957,0.01218,41013.0,41005.0,0.20181652]
[1646382824359,0.00718,41013.0,41005.0,0.20181652]
[1646382824862,0.01218,41017.0,41012.0,0.20340406]
[1646382825059,0.21182372,41017.0,41012.0,0.20340406]
[1646382825260,0.01218,41025.0,41013.0,0.06101768]
[1646382825695,0.3,41027.0,41013.0,0.25145526]
[1646382825898,0.32415,41027.0,41013.0,0.19043758]
[1646382826296,0.3,41027.0,41013.0,0.19043758]
[1646382826496,0.07316135,41028.0,41021.0,0.16231309]
[1646382826497,0.06099135,41028.0,41021.0,0.16231309]
[1646382826698,0.01217,41028.0,41021.0,0.16231309]
[1646382826902,0.06098469,41032.0,41029.0,0.19018717]
[1646382827101,0.01217,41038.0,41016.0,0.0449]
[1646382827299,0.25348323,41031.0,41016.0,0.27888339]
[1646382827602,0.3,41030.0,41016.0,0.32888339]
[1646382827799,0.02415,41037.0,41016.0,0.0949]
[1646382827998,0.02415,41037.0,41029.0,0.18181116]
[1646382828302,0.02415,41037.0,41016.0,0.0949]
[1646382828303,0.06097889,41037.0,41023.0,0.07424514]
[1646382828503,0.5126,41039.0,41030.0,0.07419994]
[1646382828716,0.5126,41039.0,41023.0,0.0449]
[1646382828717,0.01,41039.0,41037.0,0.05433801]
[1646382828900,0.01,41039.0,41024.0,0.004996]
[1646382828901,0.01,41039.0,41025.0,0.02415]
[1646382829101,0.01,41039.0,41035.0,0.20184794]
[1646382829754,0.01,41039.0,41035.0,0.24674794]
[1646382829953,0.01,41039.0,41036.0,0.05919489]
[1646382830951,0.01,41039.0,41037.0,0.17436425]
[1646382831356,0.01,41039.0,41035.0,0.20184794]
[1646382831551,0.01,41039.0,41033.0,0.01217]
[1646382831755,0.01,41039.0,41028.0,0.0449]
[1646382831950,0.01,41039.0,41020.0,0.4593]
[1646382831951,0.02415,41038.0,41020.0,0.4542]
[1646382832152,0.3,41038.0,41021.0,0.05707]
[1646382832355,0.3,41038.0,41022.0,0.0449]
[1646382832356,0.25643287,41034.0,41022.0,0.0449]
[1646382832552,0.01,41039.0,41034.0,0.17122812]
[1646382833591,0.01,41039.0,41035.0,0.20086523]
[1646382833791,0.01,41039.0,41030.0,0.0449]
[1646382834594,0.2725138,41039.0,41030.0,0.0449]
[1646382834792,0.01,41039.0,41033.0,0.06069719]
[1646382834992,0.01,41039.0,41038.0,0.20950988]
[1646382835192,0.30311286,41036.0,41030.0,0.0449]
[1646382835792,0.24000001,41033.0,41030.0,0.0449]
[1646382835995,0.32415,41032.0,41023.0,0.0449]
[1646382836196,0.32415,41032.0,41019.0,0.23169177]
[1646382836394,0.32415,41032.0,41019.0,0.17071777]
[1646382836847,0.24000001,41033.0,41026.0,0.19774992]
[1646382837047,0.02415,41032.0,41010.0,0.0005]
[1646382837246,0.25090651,41028.0,41014.0,0.20662279]
[1646382837446,0.25090651,41028.0,41024.0,0.0005]
[1646382838046,0.24000001,41033.0,41025.0,0.19791547]
[1646382838447,0.24000001,41033.0,41024.0,0.0005]
[1646382840046,0.24000001,41033.0,41026.0,0.15872447]
[1646382840247,0.24000001,41033.0,41024.0,0.0005]
[1646382840248,0.02816155,41030.0,41027.0,1.65]
[1646382840503,0.02816155,41030.0,41028.0,0.21674445]
[1646382840702,0.02816155,41030.0,41029.0,0.06015746]
[1646382840903,0.02816155,41030.0,41028.0,0.21674445]
[1646382841603,0.02816155,41030.0,41028.0,0.26674445]
[1646382842303,0.02816155,41030.0,41024.0,0.0005]
[1646382842506,0.02816155,41030.0,41025.0,0.0635108]
[1646382842704,0.02816155,41030.0,41024.0,0.0005]
[1646382843104,0.02816155,41030.0,41024.0,0.3005]
[1646382843305,0.02816155,41030.0,41025.0,0.2625685]
[1646382843904,0.02816155,41030.0,41027.0,0.06482542]
[1646382844942,0.02816155,41030.0,41028.0,0.060958]
[1646382846842,0.02816155,41030.0,41029.0,0.21016049]
[1646382847047,0.30311286,41036.0,41030.0,1.45]
[1646382847244,0.02,41039.0,41031.0,0.8343]
[1646382847446,0.02,41039.0,41034.0,0.02415]
[1646382847643,0.02,41039.0,41033.0,0.17097672]
[1646382847848,0.02,41039.0,41031.0,0.01217]
[1646382848106,0.02,41039.0,41024.0,0.183342]
[1646382848107,0.02,41039.0,41024.0,0.0005]
[1646382848306,0.02,41039.0,41024.0,0.061465]
[1646382848507,0.02,41039.0,41024.0,0.085615]
[1646382848706,0.23566869,41035.0,41024.0,0.061465]
[1646382849005,0.02,41039.0,41028.0,0.28783021]
[1646382849206,0.02,41039.0,41035.0,0.19657142]
[1646382849609,0.02,41039.0,41036.0,0.05]
[1646382851008,0.21423591,41039.0,41036.0,0.05]
[1646382851308,0.02,41039.0,41036.0,0.05]
[1646382851516,0.05,41051.0,41037.0,0.15]
[1646382851745,0.01218,41054.0,41037.0,0.15]
[1646382851946,0.01217,41057.0,41032.0,0.060953]
[1646382852148,0.01217,41057.0,41025.0,0.3]
[1646382852149,0.367309,41056.0,41025.0,0.3]
[1646382852347,0.367309,41054.0,41026.0,0.15]
[1646382852547,0.06096465,41045.0,41026.0,0.15]
[1646382852745,0.06096465,41045.0,41027.0,0.18888235]
[1646382852945,0.21544284,41038.0,41028.0,0.06323109]
[1646382853347,0.18547203,41043.0,41034.0,0.18159478]
[1646382853546,0.06096465,41045.0,41034.0,0.18159478]
[1646382853748,0.05,41052.0,41034.0,0.05]
[1646382853749,0.01217,41051.0,41034.0,0.05]
[1646382854146,0.01217,41051.0,41031.0,0.3]
[1646382854147,0.367309,41050.0,41031.0,0.3]
[1646382854349,0.01217,41049.0,41034.0,0.15]
[1646382854548,0.01217,41051.0,41035.0,0.3]
[1646382854749,0.01217,41051.0,41040.0,0.1654354]
[1646382855146,0.3308708,41039.0,41037.0,0.3]
[1646382855347,0.3308708,41039.0,41038.0,0.05921185]
[1646382855896,0.3308708,41039.0,41037.0,0.16754848]
[1646382856897,0.3308708,41039.0,41038.0,0.05762954]
[1646382857303,0.05,41051.0,41050.0,0.20503282]
[1646382857501,0.01217,41059.0,41050.0,0.20503282]
[1646382858103,0.01217,41059.0,41057.0,0.15549696]
[1646382858303,0.27422423,41054.0,41050.0,0.15409652]
[1646382858706,0.27422423,41054.0,41051.0,0.45]
[1646382858904,0.05135064,41058.0,41055.0,0.20545813]
[1646382859104,0.05135064,41058.0,41057.0,0.15]
[1646382859354,0.05135064,41058.0,41055.0,0.03635]
[1646382859355,0.35135064,41058.0,41055.0,0.03635]
[1646382859553,0.367309,41056.0,41034.0,0.041]
[1646382859754,0.35135064,41058.0,41034.0,0.041]
[1646382859755,0.3,41055.0,41034.0,0.041]
[1646382859958,0.05135064,41058.0,41035.0,0.3]
[1646382859959,0.06083559,41054.0,41035.0,0.3]
[1646382860153,0.01217,41057.0,41037.0,0.15]
[1646382860352,0.367309,41056.0,41035.0,0.3]
[1646382860554,0.367309,41056.0,41033.0,0.01217]
[1646382860555,0.01217,41055.0,41033.0,0.01217]
[1646382860752,0.11217,41055.0,41033.0,0.01217]
[1646382860952,0.367309,41054.0,41033.0,0.01217]
[1646382861154,0.18806438,41044.0,41033.0,0.31217]
[1646382861358,0.18806438,41044.0,41033.0,0.01217]
[1646382861556,0.367309,41043.0,41033.0,0.01217]
[1646382861755,0.367309,41041.0,41013.0,0.06098]
[1646382861954,0.8343,41042.0,41010.0,0.1505]
[1646382861955,0.367309,41038.0,41010.0,0.1505]
[1646382862154,0.01288703,41036.0,41010.0,0.0005]
[1646382862353,0.25448005,41034.0,41016.0,0.16167967]
[1646382862555,0.679479,41033.0,41016.0,0.16167967]
[1646382862754,0.01217,41033.0,41016.0,0.16167967]
[1646382862997,0.01217,41033.0,41023.0,0.16351767]
[1646382863199,0.25448005,41034.0,41014.0,0.15]
[1646382863399,0.367309,41033.0,41014.0,0.15]
[1646382863597,0.001,41019.0,41014.0,0.15]
[1646382863999,0.001,41019.0,41015.0,0.15]
[1646382865103,0.001,41019.0,41012.0,0.21756737]
[1646382865502,0.001,41019.0,41014.0,0.1611302]
[1646382865702,0.001,41019.0,41015.0,0.15]
[1646382865903,0.001,41019.0,41016.0,0.060976]
[1646382866503,0.001,41019.0,41014.0,0.060978]
[1646382866746,0.001,41019.0,41015.0,0.15]
[1646382867148,0.001,41019.0,41010.0,0.0005]
[1646382867352,0.59667059,41018.0,41010.0,0.0005]
[1646382867550,0.3,41017.0,41010.0,0.0005]
[1646382867751,0.13999636,41013.0,41010.0,0.0005]
[1646382867948,0.13999636,41011.0,41010.0,0.0005]
[1646382868149,0.50730536,41011.0,41010.0,0.0005]
[1646382868349,0.57975169,41011.0,41010.0,0.0005]
[1646382868649,0.001,41019.0,41010.0,0.0005]
[1646382868650,0.0610144,41016.0,41010.0,0.0005]
[1646382869448,0.367309,41013.0,41010.0,0.0005]
[1646382869849,0.24833951,41014.0,41010.0,0.0005]
[1646382870057,0.18390896,41013.0,41010.0,0.0005]
[1646382870504,0.24833951,41014.0,41010.0,0.0005]
[1646382871701,0.39833951,41014.0,41010.0,0.0005]
[1646382871899,0.41051951,41014.0,41010.0,0.0005]
[1646382872299,0.01218,41013.0,41010.0,0.0005]
[1646382872499,0.13999636,41011.0,41010.0,0.0005]
[1646382872701,0.67105402,41011.0,41010.0,0.0005]
[1646382873205,1.74569115,41009.0,40992.0,0.001]
[1646382873503,1.74569115,41009.0,40994.0,0.001]
[1646382873504,0.367309,41003.0,40994.0,0.001]
[1646382873701,0.367309,40998.0,40994.0,0.001]
[1646382873901,1.77197128,40998.0,40994.0,0.001]
[1646382874102,0.13999636,40995.0,40992.0,0.0001]
[1646382874348,0.50730536,40993.0,40992.0,0.0001]
[1646382874554,0.4,40997.0,40991.0,0.0061]
[1646382874747,0.1,40997.0,40991.0,0.0061]
[1646382874948,0.06104302,40995.0,40991.0,0.0061]
[1646382875156,0.1999,40993.0,40991.0,0.0061]
[1646382875555,0.25,40991.0,40986.0,0.002]
[1646382875755,0.3,40992.0,40986.0,0.002]
[1646382875954,0.1998,40989.0,40986.0,0.002]
[1646382876151,0.3,40988.0,40986.0,0.002]
[1646382876352,0.43999636,40988.0,40986.0,0.002]
[1646382876552,0.13999636,40988.0,40986.0,0.002]
[1646382876754,0.45419895,40989.0,40986.0,0.002]
[1646382877757,0.13999636,40988.0,40986.0,0.002]
[1646382878007,0.3,40988.0,40986.0,0.002]
[1646382878512,0.1998,40989.0,40986.0,0.002]
[1646382879506,0.24636509,40998.0,40986.0,0.002]
[1646382879507,0.3,40997.0,40986.0,0.152]
[1646382879707,0.1998,40990.0,40988.0,0.21013132]
[1646382880407,0.3,40997.0,40988.0,0.21013132]
[1646382880607,0.44908383,40994.0,40988.0,0.21013132]
[1646382880910,0.367309,40993.0,40986.0,0.002]
[1646382881108,0.26791033,40994.0,40986.0,0.002]
[1646382881306,0.367309,40993.0,40986.0,0.002]
[1646382881506,0.26791033,40994.0,40986.0,0.002]
[1646382881956,0.367309,40993.0,40991.0,0.21636144]
[1646382882156,0.0449,40998.0,40991.0,0.21636144]
[1646382882157,0.367309,40997.0,40991.0,0.21636144]
[1646382882360,0.1998,40997.0,40991.0,0.21636144]
[1646382882954,0.06102765,41002.0,40991.0,0.21636144]
[1646382883155,0.1998,40993.0,40991.0,0.21636144]
[1646382883557,0.2184513,40998.0,40991.0,0.21636144]
[1646382884155,0.367309,40996.0,40991.0,0.21636144]
[1646382884356,0.18770167,40995.0,40991.0,0.21636144]
[1646382884556,0.2184513,40998.0,40991.0,0.21636144]
[1646382884756,0.2184513,40998.0,40987.0,0.101]
[1646382884960,0.667309,40997.0,40987.0,0.101]
[1646382885157,0.679489,40997.0,40987.0,0.101]
[1646382885357,0.704489,40997.0,40987.0,0.101]
[1646382885606,0.7343,40996.0,40987.0,0.101]
[1646382885801,0.367309,40988.0,40987.0,0.101]
[1646382886205,0.01218,40995.0,40987.0,0.30092188]
[1646382886504,0.367309,40997.0,40987.0,0.30092188]
[1646382886703,0.367309,40996.0,40987.0,0.30092188]
[1646382886904,0.367309,40997.0,40987.0,0.30092188]
[1646382887107,0.67792506,41010.0,40987.0,0.30092188]
[1646382887108,0.01470582,41007.0,40996.0,0.15]
[1646382887307,0.01470582,41007.0,40997.0,0.35527764]
[1646382887508,0.01470582,41007.0,40997.0,0.0449]
[1646382887708,0.01470582,41007.0,40995.0,0.15]
[1646382887905,0.01470582,41007.0,40993.0,0.0449]
[1646382887906,0.19068352,40998.0,40993.0,0.0449]
[1646382888108,0.06103125,40999.0,40992.0,0.15]
[1646382888305,0.06103125,40999.0,40993.0,0.17797666]
[1646382888507,0.367309,40998.0,40993.0,0.17797666]
[1646382888711,0.367309,40998.0,40987.0,0.11318]
[1646382888906,0.06103125,40999.0,40992.0,0.15]
[1646382889348,0.47934406,41004.0,40992.0,0.15]
[1646382889349,0.367309,41002.0,40992.0,0.15]
[1646382889549,0.367309,41002.0,40989.0,0.15]
[1646382889747,0.367309,41002.0,40991.0,0.18427453]
[1646382890249,0.367309,41002.0,40993.0,0.15]
[1646382890449,0.367309,41002.0,40998.0,0.17584787]
[1646382890652,0.367309,41002.0,40993.0,0.20230699]
[1646382890653,0.35169573,40995.0,40993.0,0.20230699]
[1646382890850,0.35169573,40995.0,40993.0,0.35230699]
[1646382891450,0.35169573,40995.0,40994.0,0.15]
[1646382891649,0.35169573,40995.0,40990.0,0.15]
[1646382891853,0.667309,40994.0,40987.0,0.101]
[1646382892652,0.21485348,40990.0,40987.0,0.101]
[1646382892849,0.367309,40989.0,40987.0,0.101]
[1646382893099,0.367309,40988.0,40987.0,0.10035861]
[1646382893800,0.27498009,40976.0,40957.0,1.2341]
[1646382893995,0.27498009,40976.0,40973.0,0.001]
[1646382895197,0.13999636,40974.0,40973.0,0.001]
[1646382895398,0.367309,40973.0,40969.0,0.001]
[1646382895595,0.48489636,40974.0,40969.0,0.001]
[1646382895596,0.7343,40970.0,40969.0,0.001]
[1646382895797,1.446509,40970.0,40969.0,0.001]
[1646382896095,0.712209,40970.0,40969.0,0.001]
[1646382896502,0.367309,40969.0,40955.0,0.001]
[1646382896752,0.13999636,40965.0,40955.0,0.001]
[1646382896957,0.367309,40962.0,40955.0,0.001]
[1646382897152,0.7343,40958.0,40955.0,0.001]
[1646382897351,0.7343,40958.0,40948.0,0.001]
[1646382897352,0.7343,40956.0,40948.0,0.001]
[1646382897551,0.7343,40954.0,40948.0,0.0001]
[1646382897754,0.7343,40954.0,40942.0,0.0979]
[1646382897755,0.7343,40952.0,40942.0,0.0979]
[1646382897951,0.7343,40946.0,40942.0,0.0979]
[1646382898151,0.2658713,40943.0,40942.0,0.0979]
[1646382898353,0.78266112,40943.0,40942.0,0.0979]
[1646382898651,0.48266112,40943.0,40942.0,0.0979]
[1646382899251,0.62265748,40943.0,40942.0,0.03722292]
[1646382899452,0.2658713,40943.0,40942.0,0.03722292]
[1646382899652,0.06111538,40944.0,40942.0,0.03722292]
[1646382899854,0.0449,40947.0,40931.0,0.18815]
[1646382900053,0.0449,40953.0,40931.0,0.22513794]
[1646382900253,0.0449,40953.0,40936.0,0.15]
[1646382900254,0.3,40952.0,40936.0,0.15]
[1646382900500,0.3,40952.0,40933.0,0.32095564]
[1646382900799,0.2138556,40946.0,40933.0,0.32095564]
[1646382901001,0.2138556,40946.0,40934.0,0.15]
[1646382901200,0.2138556,40946.0,40942.0,0.20499888]
[1646382901400,0.0449,40952.0,40942.0,0.20499888]
[1646382902000,0.19451223,40948.0,40942.0,7.853e-05]
[1646382902199,0.31221,40953.0,40942.0,7.853e-05]
[1646382902401,0.3,40953.0,40942.0,7.853e-05]
[1646382903001,0.24000001,40948.0,40942.0,7.853e-05]
[1646382903199,0.2169228,40945.0,40942.0,7.853e-05]
[1646382903399,0.30111127,40948.0,40942.0,7.853e-05]
[1646382903601,0.13999636,40944.0,40942.0,7.853e-05]
[1646382903802,0.01670216,40946.0,40942.0,7.853e-05]
[1646382903803,1.63650536,40943.0,40942.0,7.853e-05]
[1646382904003,1.89020517,40943.0,40942.0,7.853e-05]
[1646382904263,0.91082229,40939.0,40931.0,0.01]
[1646382904457,0.64664483,40934.0,40931.0,0.01]
[1646382904656,0.13499636,40932.0,40931.0,0.01]
[1646382904857,0.86929636,40932.0,40931.0,0.01]
[1646382905056,1.16929636,40932.0,40931.0,0.01]
[1646382905255,1.16929636,40932.0,40926.0,0.001]
[1646382905256,1.0843,40931.0,40926.0,0.001]
[1646382905456,0.13499636,40928.0,40926.0,0.001]
[1646382905756,1.53660536,40928.0,40926.0,0.001]
[1646382905956,0.367309,40927.0,40915.0,0.001]
[1646382906157,0.13499636,40923.0,40915.0,0.001]
[1646382906356,0.12499636,40919.0,40915.0,0.001]
[1646382906560,0.12499636,40916.0,40915.0,0.001]
[1646382906759,0.18940563,40921.0,40915.0,0.20817547]
[1646382907157,0.18940563,40921.0,40915.0,0.001]